fUST/lending_fUST_20250809
["ID","MTS","AMOUNT","RATE_DAILY","PERIOD"]
[378054092,1754704249491,-500.0,0.00023127,2]
[378054093,1754704249500,-152.84196982,0.00023127,2]
[378054094,1754704249509,-151.0,0.00023127,2]
[378054095,1754704249519,-500.0,0.00023127,2]
[378054096,1754704249528,-151.0,0.00023127,2]
[378054097,1754704249537,-151.0,0.00023127,2]
[378054098,1754704249547,-500.0,0.00023127,2]
[378054099,1754704249557,-151.0,0.00023127,2]
[378054100,1754704249566,-500.0,0.00023127,2]
[378054101,1754704249576,-151.0,0.00023127,2]
[378054102,1754704249585,-500.0,0.00023127,2]
[378054103,1754704249594,-151.0,0.00023127,2]
[378054104,1754704249603,-500.0,0.00023127,2]
[378054105,1754704249613,-151.0,0.00023127,2]
[378054106,1754704249622,-151.0,0.00023127,2]
[378054107,1754704249631,-151.0,0.00023127,2]
[378054108,1754704249640,-151.0,0.00023127,2]
[378054109,1754704249649,-151.0,0.00023127,2]
[378054110,1754704249658,-151.0,0.00023127,2]
[378054111,1754704249667,-500.0,0.00023127,2]
[378054112,1754704249677,-151.0,0.00023127,2]
[378054113,1754704249688,-151.0,0.00023127,2]
[378054114,1754704249697,-2183.31810187,0.00023127,2]
[378054115,1754704249707,-151.0,0.00023127,2]
[378054116,1754704249716,-151.0,0.00023127,2]
[378054117,1754704249725,-500.0,0.00023127,2]
[378054118,1754704249735,-151.0,0.00023127,2]
[378054119,1754704249744,-151.0,0.00023127,2]
[378054120,1754704249754,-151.0,0.00023127,2]
[378054121,1754704249763,-500.0,0.00023127,2]
[378054122,1754704249773,-151.0,0.00023127,2]
[378054123,1754704249782,-151.0,0.00023127,2]
[378054124,1754704249791,-151.0,0.00023127,2]
[378054125,1754704249801,-500.0,0.00023127,2]
[378054126,1754704249810,-151.0,0.00023127,2]
[378054127,1754704249819,-151.0,0.00023127,2]
[378054128,1754704249828,-500.0,0.00023127,2]
[378054129,1754704249837,-151.0,0.00023127,2]
[378054130,1754704249851,-151.0,0.00023127,2]
[378054131,1754704249860,-255.82720007,0.00023127,2]
[378054132,1754704249869,-500.0,0.00023127,2]
[378054133,1754704249879,-151.0,0.00023127,2]
[378054134,1754704249889,-151.0,0.00023127,2]
[378054135,1754704249899,-151.0,0.00023127,2]
[378054136,1754704249908,-151.15347236,0.00023127,2]
[378054137,1754704249918,-151.0,0.00023127,2]
[378054138,1754704249929,-20633.42279861,0.00023127,2]
[378054139,1754704249940,-151.0,0.00023127,2]
[378054140,1754704249949,-151.0,0.00023127,2]
[378054141,1754704249958,-151.0,0.00023127,2]
[378054142,1754704249968,-250.0,0.00023127,2]
[378054143,1754704249978,-151.0,0.00023127,2]
[378054144,1754704249987,-250.0,0.00023127,2]
[378054145,1754704249997,-151.0,0.00023127,2]
[378054146,1754704250007,-250.0,0.00023127,2]
[378054147,1754704250016,-151.0,0.00023127,2]
[378054148,1754704250027,-250.0,0.00023127,2]
[378054149,1754704250037,-151.0,0.00023127,2]
[378054150,1754704250046,-250.0,0.00023127,2]
[378054151,1754704250055,-250.0,0.00023127,2]
[378054152,1754704250065,-151.0,0.00023127,2]
[378054153,1754704250074,-250.0,0.00023127,2]
[378054154,1754704250084,-151.0,0.00023127,2]
[378054155,1754704250093,-250.0,0.00023127,2]
[378054156,1754704250103,-151.0,0.00023127,2]
[378054157,1754704250112,-250.0,0.00023127,2]
[378054158,1754704250121,-151.0,0.00023127,2]
[378054159,1754704250130,-250.0,0.00023127,2]
[378054160,1754704250140,-151.0,0.00023127,2]
[378054161,1754704250149,-151.0,0.00023127,7]
[378054162,1754704250158,-151.0,0.00023127,7]
[378054163,1754704250167,-151.0,0.00023127,7]
[378054164,1754704250177,-244.31258,0.00023127,7]
[378054165,1754704250187,-255.642124,0.00023127,7]
[378054166,1754704250196,-255.642124,0.00023127,7]
[378054167,1754704250208,-461.961372,0.00023127,7]
[378054168,1754704250218,-461.961372,0.00023127,7]
[378054169,1754704250228,-12663.41139009,0.00023127,7]
[378054170,1754704250238,-151.0,0.00023127,7]
[378054171,1754704250248,-193.077546,0.00023127,7]
[378054172,1754704250257,-193.077546,0.00023127,7]
[378054173,1754704250268,-151.0,0.00023127,7]
[378054174,1754704250277,-294.794306,0.00023127,7]
[378054175,1754704250287,-294.794306,0.00023127,7]
[378054176,1754704250296,-621.55536,0.00023127,7]
[378054177,1754704250307,-621.55536,0.00023127,7]
[378054178,1754704250317,-663.0,0.00023148,2]
[378054179,1754704250326,-1649.53152287,0.00023151,2]
[378054180,1754704250336,-500.0,0.00023173,2]
[378054181,1754704250345,-150.0,0.00023173,2]
[378054182,1754704250354,-2264.10087164,0.00023182,2]
[378054183,1754704250363,-168.0,0.00023201,2]
[378054184,1754704250372,-151.0,0.00023208,7]
[378054185,1754704250381,-151.0,0.00023208,7]
[378054186,1754704250390,-2347.87260389,0.00023237,2]
[378054187,1754704250399,-160.0,0.00023243,2]
[378054188,1754704250409,-460.0,0.0002326,2]
[378054189,1754704250418,-278.25520824,0.0002326,2]
[378054190,1754704250532,-181.74479176,0.0002326,2]
[378054191,1754704250543,-1638.53,0.0002326,2]
[378054192,1754704250553,-460.0,0.0002326,2]
[378054193,1754704250563,-460.0,0.0002326,2]
[378054194,1754704250573,-842.72,0.0002326,2]
[378054195,1754704250583,-1204.44,0.0002326,2]
[378054196,1754704250593,-460.0,0.0002326,2]
[378054197,1754704250603,-1498.59,0.0002326,2]
[378054198,1754704250613,-460.0,0.0002326,2]
[378054199,1754704250622,-460.0,0.0002326,2]
[378054200,1754704250632,-1005.76742711,0.00023268,2]
[378054201,1754704250641,-6671.9877962,0.0002327,2]
[378054202,1754704250651,-200.0,0.00023272,15]
[378054203,1754704250660,-300.0,0.00023272,15]
[378054204,1754704250670,-2434.74389024,0.00023292,2]
[378054205,1754704250679,-460.0,0.00023292,2]
[378054206,1754704250689,-460.0,0.00023292,2]
[378054207,1754704250699,-460.0,0.00023292,2]
[378054208,1754704250708,-460.0,0.00023292,2]
[378054209,1754704250717,-528.84311687,0.00023292,2]
[378054210,1754704250727,-460.0,0.00023292,2]
[378054211,1754704250736,-460.0,0.00023292,2]
[378054212,1754704250746,-460.0,0.00023292,2]
[378054213,1754704250755,-460.0,0.00023292,2]
[378054214,1754704250764,-460.0,0.00023292,2]
[378054215,1754704250773,-621.55536,0.00023292,7]
[378054216,1754704250782,-621.555365,0.00023292,7]
[378054217,1754704250791,-460.0,0.00023292,2]
[378054218,1754704250802,-460.0,0.00023292,2]
[378054219,1754704250811,-460.0,0.00023292,2]
[378054220,1754704250820,-460.0,0.00023292,2]
[378054221,1754704250829,-460.0,0.00023292,2]
[378054222,1754704250839,-460.0,0.00023292,2]
[378054223,1754704250855,-460.0,0.00023292,2]
[378054224,1754704250864,-2932.03,0.00023292,2]
[378054225,1754704250874,-460.0,0.00023292,2]
[378054226,1754704250884,-680.04,0.00023292,2]
[378054227,1754704250893,-460.0,0.00023292,2]
[378054228,1754704250903,-460.0,0.00023293,2]
[378054229,1754704250911,-391.40953287,0.00023293,2]
[378054230,1754704250920,-482.4426983,0.00023293,2]
[378054231,1754704250931,-460.0,0.00023293,2]
[378054232,1754704250940,-460.0,0.00023293,2]
[378054233,1754704250949,-528.55718401,0.00023293,2]
[378054234,1754704250959,-460.0,0.00023293,2]
[378054235,1754704250970,-460.0,0.00023293,2]
[378054236,1754704250981,-460.0,0.00023293,2]
[378054237,1754704250991,-460.0,0.00023293,2]
[378054238,1754704251084,-460.0,0.00023293,2]
[378054239,1754704251094,-460.0,0.00023293,2]
[378054240,1754704251104,-460.0,0.00023293,2]
[378054241,1754704251113,-232.92046806,0.00023293,2]
[378054242,1754704251122,-549.85,0.00023293,2]
[378054243,1754704251131,-781.79,0.00023293,2]
[378054244,1754704251140,-590.59,0.00023293,2]
[378054245,1754704251150,-745.87,0.00023293,2]
[378054246,1754704251159,-460.0,0.00023293,2]
[378054247,1754704251170,-460.0,0.00023293,2]
[378054248,1754704251179,-460.0,0.00023293,2]
[378054249,1754704251190,-999.87,0.00023293,2]
[378054250,1754704251199,-460.0,0.00023293,2]
[378054251,1754704251208,-460.0,0.00023293,2]
[378054252,1754704251218,-569.08353206,0.00023293,2]
[378054253,1754704251228,-596.07,0.00023293,2]
[378054254,1754704251238,-605.28,0.00023293,2]
[378054255,1754704251247,-460.0,0.00023293,2]
[378054256,1754704251257,-460.0,0.00023293,2]
[378054257,1754704251266,-460.0,0.00023293,2]
[378054258,1754704251275,-460.0,0.00023293,2]
[378054259,1754704251285,-460.0,0.00023293,2]
[378054260,1754704251294,-460.0,0.00023293,2]
[378054261,1754704251303,-460.0,0.00023293,2]
[378054262,1754704251314,-460.0,0.00023293,2]
[378054263,1754704251324,-460.0,0.00023293,2]
[378054264,1754704251333,-255.642124,0.00023294,7]
[378054265,1754704251344,-255.642124,0.00023294,7]
[378054266,1754704251353,-193.077546,0.00023294,7]
[378054267,1754704251363,-193.077546,0.00023294,7]
[378054268,1754704251374,-151.0,0.00023295,7]
[378054269,1754704251397,-206.726464,0.00023295,7]
[378054270,1754704251407,-461.961372,0.00023295,7]
[378054271,1754704251418,-461.961372,0.00023295,7]
[378054272,1754704251429,-294.794306,0.00023295,7]
[378054273,1754704251439,-294.794306,0.00023295,7]
[378054274,1754704251449,-502.38537494,0.00023321,2]
[378054275,1754704251458,-1000.0,0.00023321,2]
[378054276,1754704251467,-1000.0,0.00023321,2]
[378054277,1754704251476,-464.19647516,0.00023321,2]
[378054278,1754704251486,-503.03309866,0.00023321,2]
[378054279,1754704251495,-300.0,0.00023321,2]
[378054280,1754704251505,-1000.0,0.00023321,2]
[378054281,1754704251514,-1092.35057706,0.00023321,2]
[378054282,1754704251524,-1000.0,0.00023321,2]
[378054283,1754704251534,-1001.81975926,0.00023321,2]
[378054284,1754704251543,-1000.0,0.00023321,2]
[378054285,1754704251553,-1001.78237328,0.00023321,2]
[378054286,1754704251562,-1000.0,0.00023321,2]
[378054287,1754704251572,-501.21025951,0.00023321,2]
[378054288,1754704251581,-1000.0,0.00023321,2]
[378054289,1754704251590,-1000.0,0.00023321,2]
[378054290,1754704251600,-502.01602962,0.00023321,2]
[378054291,1754704251610,-1001.97502455,0.00023321,2]
[378054292,1754704251620,-1001.83906,0.00023321,2]
[378054293,1754704251629,-1001.22332869,0.00023321,2]
[378054294,1754704251639,-570.00329129,0.00023321,2]
[378054295,1754704251648,-501.34003336,0.00023321,2]
[378054296,1754704251657,-504.47162244,0.00023321,2]
[378054297,1754704251667,-1000.0,0.00023321,2]
[378054298,1754704251677,-1000.0,0.00023321,2]
[378054299,1754704251687,-560.74834892,0.00023321,2]
[378054300,1754704251696,-1001.02231364,0.00023321,2]
[378054301,1754704251706,-1001.03349238,0.00023321,2]
[378054302,1754704251715,-1000.0,0.00023321,2]
[378054303,1754704251726,-1000.0,0.00023321,2]
[378054304,1754704251736,-551.196185,0.00023321,2]
[378054305,1754704251745,-458.90736978,0.00023321,2]
[378054306,1754704251755,-1000.0,0.00023321,2]
[378054307,1754704251765,-592.18039757,0.00023321,2]
[378054308,1754704251775,-940.65131175,0.00023321,2]
[378054309,1754704251784,-1001.64131963,0.00023321,2]
[378054310,1754704251794,-384.37993711,0.00023321,2]
[378054311,1754704251803,-1000.92627552,0.00023321,2]
[378054312,1754704251813,-502.50505203,0.00023321,2]
[378054313,1754704251823,-392.07726344,0.00023321,2]
[378054314,1754704251832,-1000.0,0.00023321,2]
[378054315,1754704251842,-1003.69426877,0.00023321,2]
[378054316,1754704251854,-151.0,0.00023321,7]
[378054317,1754704251864,-193.077546,0.00023321,7]
[378054318,1754704251873,-193.077546,0.00023321,7]
[378054319,1754704251882,-151.0,0.00023321,7]
[378054320,1754704251892,-294.794306,0.00023341,7]
[378054321,1754704251902,-294.794306,0.00023341,7]
[378054322,1754704251913,-2524.82941417,0.00023347,2]
[378054323,1754704251923,-674.85,0.00023354,2]
[378054324,1754704251932,-460.0,0.00023362,2]
[378054325,1754704251942,-493.16656672,0.00023362,2]
[378054326,1754704251951,-274.40194173,0.00023362,2]
[378054327,1754704251960,-460.0,0.00023362,2]
[378054328,1754704251970,-460.0,0.00023362,2]
[378054329,1754704251979,-151.0,0.00023362,7]
[378054330,1754704251988,-460.0,0.00023362,2]
[378054331,1754704251997,-460.0,0.00023362,2]
[378054332,1754704252006,-460.0,0.00023362,2]
[378054333,1754704252016,-460.0,0.00023362,2]
[378054334,1754704252025,-460.0,0.00023362,2]
[378054335,1754704252034,-255.642124,0.00023362,7]
[378054336,1754704252043,-255.642124,0.00023362,7]
[378054337,1754704252053,-461.961372,0.00023362,7]
[378054338,1754704252062,-461.961372,0.00023362,7]
[378054339,1754704252072,-151.0,0.00023362,7]
[378054340,1754704252081,-151.0,0.00023362,7]
[378054341,1754704252090,-177.35352861,0.00023363,2]
[378054342,1754704252099,-247.22282917,0.00023363,2]
[378054343,1754704252108,-248.32751794,0.00023363,2]
[378054344,1754704252117,-663.0,0.00023368,2]
[378054345,1754704252126,-1511.52267671,0.00023368,2]
[378054346,1754704252135,-1800.0,0.00023368,2]
[378054347,1754704252145,-1500.0,0.00023368,2]
[378054348,1754704252154,-506.05820326,0.00023368,2]
[378054349,1754704252163,-1500.0,0.00023368,2]
[378054350,1754704252172,-2618.2481025,0.00023402,2]
[378054351,1754704252181,-3228.91275168,0.00023409,2]
[378054352,1754704252191,-2444.73976621,0.00023457,2]
[378054353,1754704252200,-9081.3167226,0.00023462,2]
[378054354,1754704252208,-5462.49946752,0.00023463,2]
[378054355,1754704252218,-1731.68,0.00023531,3]
[378054356,1754704252227,-460.0,0.00023534,2]
[378054357,1754704252237,-460.0,0.00023534,2]
[378054358,1754704252246,-1638.53,0.00023534,2]
[378054359,1754704252255,-460.0,0.00023534,2]
[378054360,1754704252264,-460.0,0.00023534,2]
[378054361,1754704252274,-842.72,0.00023534,2]
[378054362,1754704252283,-1204.44,0.00023534,2]
[378054363,1754704252297,-460.0,0.00023534,2]
[378054364,1754704252306,-1498.59,0.00023534,2]
[378054365,1754704252315,-460.0,0.00023534,2]
[378054366,1754704252324,-460.0,0.00023534,2]
[378054367,1754704252334,-366.04347945,0.00023566,2]
[378054368,1754704252343,-460.0,0.00023566,2]
[378054369,1754704252355,-460.0,0.00023566,2]
[378054370,1754704252364,-460.0,0.00023566,2]
[378054371,1754704252373,-460.0,0.00023566,2]
[378054372,1754704252382,-460.0,0.00023566,2]
[378054373,1754704252392,-460.0,0.00023566,2]
[378054374,1754704252401,-460.0,0.00023566,2]
[378054375,1754704252410,-460.0,0.00023566,2]
[378054376,1754704252419,-460.0,0.00023566,2]
[378054377,1754704252428,-460.0,0.00023566,2]
[378054378,1754704252438,-460.0,0.00023566,2]
[378054379,1754704252447,-460.0,0.00023566,2]
[378054380,1754704252456,-460.0,0.00023566,2]
[378054381,1754704252465,-460.0,0.00023566,2]
[378054382,1754704252474,-460.0,0.00023566,2]
[378054383,1754704252483,-2932.03,0.00023566,2]
[378054384,1754704252492,-460.0,0.00023566,2]
[378054385,1754704252502,-680.04,0.00023566,2]
[378054386,1754704252511,-460.0,0.00023567,2]
[378054387,1754704252520,-460.0,0.00023567,2]
[378054388,1754704252529,-151.67409162,0.00023567,2]
[378054389,1754704252538,-460.0,0.00023567,2]
[378054390,1754704252547,-460.0,0.00023567,2]
[378054391,1754704252556,-460.0,0.00023567,2]
[378054392,1754704252565,-460.0,0.00023567,2]
[378054393,1754704252574,-460.0,0.00023567,2]
[378054394,1754704252584,-460.0,0.00023567,2]
[378054395,1754704252593,-460.0,0.00023567,2]
[378054396,1754704252602,-549.85,0.00023567,2]
[378054397,1754704252611,-781.79,0.00023567,2]
[378054398,1754704252620,-590.59,0.00023567,2]
[378054399,1754704252629,-745.87,0.00023567,2]
[378054400,1754704252639,-460.0,0.00023567,2]
[378054401,1754704252648,-460.0,0.00023567,2]
[378054402,1754704252657,-460.0,0.00023567,2]
[378054403,1754704252667,-193.077546,0.00023567,7]
[378054404,1754704252676,-193.077549,0.00023567,7]
[378054405,1754704252685,-999.87,0.00023567,2]
[378054406,1754704252695,-460.0,0.00023567,2]
[378054407,1754704252704,-460.0,0.00023567,2]
[378054408,1754704252714,-596.07,0.00023567,2]
[378054409,1754704252724,-605.28,0.00023567,2]
[378054410,1754704252733,-294.794306,0.00023567,7]
[378054411,1754704252742,-294.7943,0.00023567,7]
[378054412,1754704252751,-460.0,0.00023567,2]
[378054413,1754704252761,-474.21511776,0.00023567,2]
[378054414,1754704252770,-460.0,0.00023567,2]
[378054415,1754704252780,-460.0,0.00023567,2]
[378054416,1754704252790,-460.0,0.00023567,2]
[378054417,1754704252801,-460.0,0.00023567,2]
[378054418,1754704252811,-460.0,0.00023567,2]
[378054419,1754704252820,-224.37148239,0.00023567,2]
[378054420,1754704252832,-460.0,0.00023567,2]
[378054421,1754704252842,-255.642124,0.00023568,7]
[378054422,1754704252855,-255.64213038,0.00023568,7]
[378054423,1754704252864,-151.0,0.00023569,7]
[378054424,1754704252952,-461.961372,0.00023569,7]
[378054425,1754704252963,-461.961373,0.00023569,7]
[378054426,1754704252972,-7448.98360986,0.00023599,2]
[378054427,1754704252982,-460.0,0.00023636,2]
[378054428,1754704252991,-481.43949226,0.00023636,2]
[378054429,1754704253000,-460.0,0.00023636,2]
[378054430,1754704253010,-460.0,0.00023636,2]
[378054431,1754704253021,-460.0,0.00023636,2]
[378054432,1754704253031,-460.0,0.00023636,2]
[378054433,1754704253040,-460.0,0.00023636,2]
[378054434,1754704253050,-479.49762853,0.00023636,2]
[378054435,1754704253060,-350.0,0.00023668,2]
[378054436,1754704253070,-1000.0,0.00023721,2]
[378054437,1754704253080,-250.0,0.00023721,2]
[378054438,1754704253091,-663.0,0.00023731,2]
[378054439,1754704253102,-3707.73448054,0.00023757,2]
[378054440,1754704253112,-2150.0,0.00023766,2]
[378054441,1754704253122,-636.0,0.00023766,2]
[378054442,1754704253131,-973.15,0.00023766,2]
[378054443,1754704253141,-408.0,0.00023766,2]
[378054444,1754704253150,-415.728,0.00023766,2]
[378054445,1754704253159,-260.0,0.00023791,2]
[378054446,1754704253169,-241.41584107,0.00023808,2]
[378054447,1754704253178,-460.0,0.00023808,2]
[378054448,1754704253187,-1638.53,0.00023808,2]
[378054449,1754704253196,-460.0,0.00023808,2]
[378054450,1754704253205,-460.0,0.00023808,2]
[378054451,1754704253217,-842.72,0.00023808,2]
[378054452,1754704253227,-1204.44,0.00023808,2]
[378054453,1754704253236,-460.0,0.00023808,2]
[378054454,1754704253246,-1498.59,0.00023808,2]
[378054455,1754704253258,-460.0,0.00023808,2]
[378054456,1754704253267,-460.0,0.00023808,2]
[378054457,1754704253278,-460.0,0.0002384,2]
[378054458,1754704253289,-460.0,0.0002384,2]
[378054459,1754704253298,-390.44114842,0.0002384,2]
[378054460,1754704253308,-460.0,0.0002384,2]
[378054461,1754704253318,-460.0,0.0002384,2]
[378054462,1754704253328,-460.0,0.0002384,2]
[378054463,1754704253339,-460.0,0.0002384,2]
[378054464,1754704253348,-460.0,0.0002384,2]
[378054465,1754704253358,-460.0,0.0002384,2]
[378054466,1754704253367,-460.0,0.0002384,2]
[378054467,1754704253375,-460.0,0.0002384,2]
[378054468,1754704253385,-460.0,0.0002384,2]
[378054469,1754704253394,-460.0,0.0002384,2]
[378054470,1754704253403,-460.0,0.0002384,2]
[378054471,1754704253416,-460.0,0.0002384,2]
[378054472,1754704253425,-2932.03,0.0002384,2]
[378054473,1754704253434,-460.0,0.0002384,2]
[378054474,1754704253444,-680.04,0.0002384,2]
[378054475,1754704253453,-460.0,0.00023841,2]
[378054476,1754704253462,-460.0,0.00023841,2]
[378054477,1754704253471,-460.0,0.00023841,2]
[378054478,1754704253480,-460.0,0.00023841,2]
[378054479,1754704253490,-460.0,0.00023841,2]
[378054480,1754704253499,-403.4285551,0.00023841,2]
[378054481,1754704253508,-460.0,0.00023841,2]
[378054482,1754704253517,-460.0,0.00023841,2]
[378054483,1754704253527,-460.0,0.00023841,2]
[378054484,1754704253537,-549.85,0.00023841,2]
[378054485,1754704253546,-781.79,0.00023841,2]
[378054486,1754704253555,-590.59,0.00023841,2]
[378054487,1754704253567,-745.87,0.00023841,2]
[378054488,1754704253576,-460.0,0.00023841,2]
[378054489,1754704253586,-492.52203086,0.00023841,2]
[378054490,1754704253595,-460.0,0.00023841,2]
[378054491,1754704253606,-999.87,0.00023841,2]
[378054492,1754704253616,-460.0,0.00023841,2]
[378054493,1754704253625,-460.0,0.00023841,2]
[378054494,1754704253635,-596.07,0.00023841,2]
[378054495,1754704253644,-605.28,0.00023841,2]
[378054496,1754704253654,-460.0,0.00023841,2]
[378054497,1754704253663,-350.09618825,0.00023841,2]
[378054498,1754704253674,-460.0,0.00023841,2]
[378054499,1754704253683,-460.0,0.00023841,2]
[378054500,1754704253694,-460.0,0.00023841,2]
[378054501,1754704253703,-460.0,0.00023841,2]
[378054502,1754704253714,-477.72183491,0.00023841,2]
[378054503,1754704253725,-1500.0,0.00023868,2]
[378054504,1754704253735,-1500.0,0.00023868,2]
[378054505,1754704253744,-455.47774934,0.00023868,2]
[378054506,1754704253756,-1000.0,0.00023868,2]
[378054507,1754704253765,-1007.35793277,0.00023868,2]
[378054508,1754704253775,-180.32577956,0.00023868,2]
[378054509,1754704253784,-1500.0,0.00023868,2]
[378054510,1754704253793,-1500.0,0.00023868,2]
[378054511,1754704253803,-1002.57253159,0.00023868,2]
[378054512,1754704253812,-507.53751155,0.00023868,2]
[378054513,1754704253821,-1500.0,0.00023868,2]
[378054514,1754704253830,-606.44966451,0.00023868,2]
[378054515,1754704253840,-516.1618568,0.00023868,2]
[378054516,1754704253852,-1500.0,0.00023868,2]
[378054517,1754704253861,-501.64750758,0.00023868,2]
[378054518,1754704253870,-663.0,0.00023888,2]
[378054519,1754704253879,-460.0,0.0002391,2]
[378054520,1754704253889,-209.41507103,0.0002391,2]
[378054521,1754704253898,-460.0,0.0002391,2]
[378054522,1754704253907,-460.0,0.0002391,2]
[378054523,1754704253916,-532.07921807,0.0002391,2]
[378054524,1754704253925,-460.0,0.0002391,2]
[378054525,1754704253935,-2400.0,0.00023916,2]
[378054526,1754704253945,-1252.95218013,0.00023916,2]
[378054527,1754704253954,-2000.0,0.00023916,2]
[378054528,1754704253963,-366.11,0.00024,14]
[378054529,1754704253972,-151.0,0.00024,9]
[378054530,1754704253982,-160.0,0.00024,7]
[378054531,1754704253991,-842.78739015,0.00024,7]
[378054532,1754704254000,-160.0,0.00024,7]
[378054533,1754704254010,-160.0,0.00024,7]
[378054534,1754704254021,-160.0,0.00024,7]
[378054535,1754704254030,-216.5651299,0.00024,7]
[378054536,1754704254039,-160.0,0.00024,7]
[378054537,1754704254049,-160.0,0.00024,7]
[378054538,1754704254058,-312.16666667,0.00024,7]
[378054539,1754704254067,-168.0,0.00024015,2]
[378054540,1754704254076,-150.0,0.00024035,2]
[378054541,1754704254086,-663.0,0.00024062,2]
[378054542,1754704254095,-420.0,0.0002407,2]
[378054543,1754704254105,-303.0,0.00024076,2]
[378054544,1754704254114,-410.0,0.00024076,2]
[378054545,1754704254123,-460.0,0.00024082,2]
[378054546,1754704254133,-1638.53,0.00024082,2]
[378054547,1754704254143,-460.0,0.00024082,2]
[378054548,1754704254152,-460.0,0.00024082,2]
[378054549,1754704254162,-842.72,0.00024082,2]
[378054550,1754704254172,-1204.44,0.00024082,2]
[378054551,1754704254182,-460.0,0.00024082,2]
[378054552,1754704254193,-1498.59,0.00024082,2]
[378054553,1754704254202,-460.0,0.00024082,2]
[378054554,1754704254212,-460.0,0.00024082,2]
[378054555,1754704254221,-460.0,0.00024114,2]
[378054556,1754704254230,-465.16255584,0.00024114,2]
[378054557,1754704254240,-460.0,0.00024114,2]
[378054558,1754704254249,-460.0,0.00024114,2]
[378054559,1754704254258,-460.0,0.00024114,2]
[378054560,1754704254268,-460.0,0.00024114,2]
[378054561,1754704254277,-460.0,0.00024114,2]
[378054562,1754704254287,-460.0,0.00024114,2]
[378054563,1754704254296,-460.0,0.00024114,2]
[378054564,1754704254305,-341.50441443,0.00024114,2]
[378054565,1754704254314,-460.0,0.00024114,2]
[378054566,1754704254323,-460.0,0.00024114,2]
[378054567,1754704254332,-460.0,0.00024114,2]
[378054568,1754704254342,-460.0,0.00024114,2]
[378054569,1754704254353,-2932.03,0.00024114,2]
[378054570,1754704254362,-460.0,0.00024114,2]
[378054571,1754704254371,-680.04,0.00024114,2]
[378054572,1754704254380,-1304.65964749,0.00024115,2]
[378054573,1754704254389,-460.0,0.00024115,2]
[378054574,1754704254398,-460.0,0.00024115,2]
[378054575,1754704254407,-460.0,0.00024115,2]
[378054576,1754704254416,-460.0,0.00024115,2]
[378054577,1754704254426,-460.0,0.00024115,2]
[378054578,1754704254435,-460.0,0.00024115,2]
[378054579,1754704254446,-460.0,0.00024115,2]
[378054580,1754704254455,-460.0,0.00024115,2]
[378054581,1754704254465,-549.85,0.00024115,2]
[378054582,1754704254476,-781.79,0.00024115,2]
[378054583,1754704254485,-590.59,0.00024115,2]
[378054584,1754704254495,-745.87,0.00024115,2]
[378054585,1754704254505,-518.43212667,0.00024115,2]
[378054586,1754704254515,-460.0,0.00024115,2]
[378054587,1754704254525,-999.87,0.00024115,2]
[378054588,1754704254535,-488.7969785,0.00024115,2]
[378054589,1754704254544,-460.0,0.00024115,2]
[378054590,1754704254554,-596.07,0.00024115,2]
[378054591,1754704254563,-605.28,0.00024115,2]